[Event "Titled Tuesday Blitz December 06 Early 2022"]
[White "Zaichenko, Daria"]
[Black "Garv Gaur"]
[WhiteFideId "4197453"]
[BlackFideId "45030839"]
[WhiteElo "2039"]
[BlackElo "2056"]
[Result "0-1"]
[Round "06"]
[TimeControl "180+1"]
[Date "2022.12.07"]
[WhiteClock "0:00:48"]
[BlackClock "0:01:26"]

1. e4 {[%clk 0:02:57]}  c6 {[%clk 0:02:59]} 2. d4 {[%clk 0:02:57]}  d5 {[%clk 0:03:00]} 3. Nc3 {[%clk 0:02:57]}  dxe4 {[%clk 0:03:00]} 4. Nxe4 {[%clk 0:02:57]}  Bf5 {[%clk 0:03:01]} 5. Ng3 {[%clk 0:02:58]}  Bg6 {[%clk 0:03:01]} 6. h4 {[%clk 0:02:58]}  h6 {[%clk 0:03:01]} 7. h5 {[%clk 0:02:59]}  Bh7 {[%clk 0:03:02]} 8. Nf3 {[%clk 0:02:59]}  Nd7 {[%clk 0:03:01]} 9. Bd3 {[%clk 0:02:59]}  Bxd3 {[%clk 0:03:01]} 10. Qxd3 {[%clk 0:02:59]}  e6 {[%clk 0:03:02]} 11. Bd2 {[%clk 0:02:59]}  Ngf6 {[%clk 0:03:02]} 12. O-O-O {[%clk 0:02:59]}  Be7 {[%clk 0:03:03]} 13. Kb1 {[%clk 0:03:00]}  O-O {[%clk 0:03:02]} 14. Ne4 {[%clk 0:03:00]}  Nxe4 {[%clk 0:03:03]} 15. Qxe4 {[%clk 0:03:00]}  Nf6 {[%clk 0:03:04]} 16. Qe2 {[%clk 0:03:00]}  Qd5 {[%clk 0:03:02]} 17. Ne5 {[%clk 0:02:53]}  c5 {[%clk 0:02:54]} 18. c4 {[%clk 0:02:47]}  Qxd4 {[%clk 0:02:49]} 19. Bxh6 {[%clk 0:02:42]}  Qe4+ {[%clk 0:02:47]} 20. Qxe4 {[%clk 0:02:42]}  Nxe4 {[%clk 0:02:48]} 21. Be3 {[%clk 0:02:42]}  Rfd8 {[%clk 0:02:42]} 22. Rxd8+ {[%clk 0:02:26]}  Rxd8 {[%clk 0:02:40]} 23. h6 {[%clk 0:02:27]}  gxh6 {[%clk 0:02:36]} 24. Bxh6 {[%clk 0:02:27]}  Nxf2 {[%clk 0:02:30]} 25. Rf1 {[%clk 0:02:23]}  Rd1+ {[%clk 0:02:25]} 26. Rxd1 {[%clk 0:02:19]}  Nxd1 {[%clk 0:02:26]} 27. Nd3 {[%clk 0:02:12]}  Bh4 {[%clk 0:02:04]} 28. Kc2 {[%clk 0:01:53]}  Nf2 {[%clk 0:02:04]} 29. Nxc5 {[%clk 0:01:53]}  b6 {[%clk 0:02:04]} 30. Nd3 {[%clk 0:01:49]}  Nxd3 {[%clk 0:02:01]} 31. Kxd3 {[%clk 0:01:49]}  Bg3 {[%clk 0:02:00]} 32. b4 {[%clk 0:01:46]}  f5 {[%clk 0:01:56]} 33. c5 {[%clk 0:01:41]}  bxc5 {[%clk 0:01:55]} 34. bxc5 {[%clk 0:01:41]}  Kf7 {[%clk 0:01:56]} 35. Be3 {[%clk 0:01:41]}  e5 {[%clk 0:01:46]} 36. Kc4 {[%clk 0:01:40]}  e4 {[%clk 0:01:43]} 37. Kd5 {[%clk 0:01:39]}  f4 {[%clk 0:01:41]} 38. Kxe4 {[%clk 0:01:28]}  fxe3 {[%clk 0:01:41]} 39. Kxe3 {[%clk 0:01:29]}  Ke6 {[%clk 0:01:41]} 40. Kd4 {[%clk 0:01:29]}  Kd7 {[%clk 0:01:33]} 41. Kd5 {[%clk 0:01:26]}  Kc7 {[%clk 0:01:33]} 42. a4 {[%clk 0:01:18]}  Kd7 {[%clk 0:01:33]} 43. Kc4 {[%clk 0:01:01]}  Kc6 {[%clk 0:01:32]} 44. Kb4 {[%clk 0:01:01]}  Bf2 {[%clk 0:01:26]} 45. Ka5 {[%clk 0:00:50]}  Bxc5 {[%clk 0:01:25]} 46. Ka6 {[%clk 0:00:50]}  Kd5 {[%clk 0:01:25]} 47. Kb5 {[%clk 0:00:50]}  Be3 {[%clk 0:01:23]} 48. Kb4 {[%clk 0:00:47]}  Ke5 {[%clk 0:01:23]} 49. Kc4 {[%clk 0:00:46]}  Kf4 {[%clk 0:01:23]} 50. Kd3 {[%clk 0:00:47]}  Bb6 {[%clk 0:01:23]} 51. Ke2 {[%clk 0:00:47]}  Kg3 {[%clk 0:01:23]} 52. Kf1 {[%clk 0:00:47]}  a5 {[%clk 0:01:23]} 53. Ke2 {[%clk 0:00:48]}  Kxg2 {[%clk 0:01:23]} 54. Kd3 {[%clk 0:00:47]}  Bc5 {[%clk 0:01:23]} 55. Kc4 {[%clk 0:00:48]}  Bb4 {[%clk 0:01:24]} 56. Kb3 {[%clk 0:00:48]}  Kf3 {[%clk 0:01:25]} 57. Kc2 {[%clk 0:00:48]}  Ke3 {[%clk 0:01:26]} 0-1


[Site "https://www.chess.com"]

[Event "Titled Tuesday Blitz December 06 Early 2022"]
[White "Zaksaite, Salomeja"]
[Black "Rodchenkov, Sergey D."]
[WhiteFideId "12801496"]
[BlackFideId "4168712"]
[WhiteElo "2079"]
[BlackElo "2277"]
[Result "0-1"]
[Round "06"]
[TimeControl "180+1"]
[Date "2022.12.07"]
[WhiteClock "0:00:04"]
[BlackClock "0:00:33"]

1. e4 {[%clk 0:02:57]}  c5 {[%clk 0:02:59]} 2. Nf3 {[%clk 0:02:56]}  d6 {[%clk 0:02:58]} 3. d4 {[%clk 0:02:54]}  cxd4 {[%clk 0:02:59]} 4. Nxd4 {[%clk 0:02:52]}  Nf6 {[%clk 0:03:00]} 5. Nc3 {[%clk 0:02:47]}  a6 {[%clk 0:03:00]} 6. h3 {[%clk 0:02:46]}  e5 {[%clk 0:02:59]} 7. Nde2 {[%clk 0:02:45]}  h5 {[%clk 0:03:00]} 8. g3 {[%clk 0:02:46]}  Be6 {[%clk 0:02:55]} 9. Bg2 {[%clk 0:02:45]}  Nbd7 {[%clk 0:02:53]} 10. O-O {[%clk 0:02:44]}  g6 {[%clk 0:02:52]} 11. Nd5 {[%clk 0:02:41]}  Bg7 {[%clk 0:02:52]} 12. f4 {[%clk 0:02:40]}  Bxd5 {[%clk 0:02:50]} 13. exd5 {[%clk 0:02:39]}  O-O {[%clk 0:02:49]} 14. f5 {[%clk 0:02:37]}  Kh7 {[%clk 0:02:47]} 15. Bg5 {[%clk 0:02:34]}  Bh6 {[%clk 0:02:44]} 16. Qd2 {[%clk 0:02:32]}  Bxg5 {[%clk 0:02:42]} 17. Qxg5 {[%clk 0:02:33]}  Qb6+ {[%clk 0:02:38]} 18. Kh2 {[%clk 0:02:32]}  Qxb2 {[%clk 0:02:33]} 19. Rac1 {[%clk 0:02:11]}  Rae8 {[%clk 0:02:21]} 20. Rf2 {[%clk 0:02:06]}  Ng8 {[%clk 0:02:16]} 21. Rcf1 {[%clk 0:01:59]}  Qxa2 {[%clk 0:02:09]} 22. Be4 {[%clk 0:01:42]}  Kg7 {[%clk 0:01:50]} 23. fxg6 {[%clk 0:01:36]}  f6 {[%clk 0:01:48]} 24. Qxh5 {[%clk 0:01:18]}  Nh6 {[%clk 0:01:46]} 25. g4 {[%clk 0:01:16]}  Rh8 {[%clk 0:01:39]} 26. g5 {[%clk 0:01:06]}  Ng8 {[%clk 0:01:36]} 27. Qg4 {[%clk 0:00:58]}  Re7 {[%clk 0:01:35]} 28. Ng3 {[%clk 0:00:52]}  Kf8 {[%clk 0:01:19]} 29. gxf6 {[%clk 0:00:48]}  Ngxf6 {[%clk 0:01:15]} 30. Rxf6+ {[%clk 0:00:44]}  Nxf6 {[%clk 0:01:14]} 31. Rxf6+ {[%clk 0:00:44]}  Kg7 {[%clk 0:01:13]} 32. Rf7+ {[%clk 0:00:27]}  Rxf7 {[%clk 0:01:03]} 33. gxf7+ {[%clk 0:00:28]}  Kxf7 {[%clk 0:01:04]} 34. Qg6+ {[%clk 0:00:27]}  Kf8 {[%clk 0:00:59]} 35. Qxd6+ {[%clk 0:00:26]}  Kg8 {[%clk 0:00:59]} 36. Qe6+ {[%clk 0:00:24]}  Kf8 {[%clk 0:00:58]} 37. Qf6+ {[%clk 0:00:22]}  Kg8 {[%clk 0:00:56]} 38. Bf5 {[%clk 0:00:11]}  b5 {[%clk 0:00:36]} 39. Be6+ {[%clk 0:00:11]}  Kh7 {[%clk 0:00:35]} 40. Qf7+ {[%clk 0:00:11]}  Kh6 {[%clk 0:00:35]} 41. Qh5+ {[%clk 0:00:06]}  Kg7 {[%clk 0:00:33]} 42. Nf5+ {[%clk 0:00:04]}  Kf6 {[%clk 0:00:33]} 0-1


[Site "https://www.chess.com"]

[Event "Titled Tuesday Blitz December 06 Early 2022"]
[White "Zhigalko, Sergei"]
[Black "Golubev, Mikhail"]
[WhiteFideId "13502956"]
[BlackFideId "14100983"]
[WhiteElo "2662"]
[BlackElo "2374"]
[Result "1-0"]
[Round "06"]
[TimeControl "180+1"]
[Date "2022.12.07"]
[WhiteClock "0:00:04"]
[BlackClock "0:00:01"]

1. e4 {[%clk 0:03:00]}  c5 {[%clk 0:02:59]} 2. c3 {[%clk 0:03:00]}  d5 {[%clk 0:02:57]} 3. exd5 {[%clk 0:03:00]}  Nf6 {[%clk 0:02:57]} 4. Nf3 {[%clk 0:03:00]}  Nxd5 {[%clk 0:02:56]} 5. d4 {[%clk 0:02:55]}  e6 {[%clk 0:02:50]} 6. Bd3 {[%clk 0:02:52]}  Nc6 {[%clk 0:02:48]} 7. dxc5 {[%clk 0:02:49]}  Bxc5 {[%clk 0:02:44]} 8. O-O {[%clk 0:02:49]}  Qc7 {[%clk 0:02:31]} 9. Re1 {[%clk 0:02:43]}  O-O {[%clk 0:02:22]} 10. Nbd2 {[%clk 0:02:30]}  Nf4 {[%clk 0:02:15]} 11. Ne4 {[%clk 0:02:29]}  Nxd3 {[%clk 0:01:53]} 12. Qxd3 {[%clk 0:02:30]}  Rd8 {[%clk 0:01:53]} 13. Qc2 {[%clk 0:02:29]}  Be7 {[%clk 0:01:42]} 14. Neg5 {[%clk 0:02:27]}  g6 {[%clk 0:01:39]} 15. Ne4 {[%clk 0:02:24]}  Nb4 {[%clk 0:01:33]} 16. Qe2 {[%clk 0:01:59]}  Nd3 {[%clk 0:01:31]} 17. Bg5 {[%clk 0:02:00]}  Nxe1 {[%clk 0:01:24]} 18. Rxe1 {[%clk 0:02:01]}  Bxg5 {[%clk 0:01:06]} 19. Nfxg5 {[%clk 0:02:00]}  Qe5 {[%clk 0:01:06]} 20. f4 {[%clk 0:01:53]}  Qg7 {[%clk 0:00:58]} 21. Qb5 {[%clk 0:01:36]}  h6 {[%clk 0:00:35]} 22. Nf3 {[%clk 0:01:36]}  b6 {[%clk 0:00:27]} 23. Qc6 {[%clk 0:01:01]}  Rb8 {[%clk 0:00:27]} 24. Nd6 {[%clk 0:01:01]}  Bd7 {[%clk 0:00:20]} 25. Qc7 {[%clk 0:01:01]}  f6 {[%clk 0:00:08]} 26. h3 {[%clk 0:00:16]}  Ba4 {[%clk 0:00:04]} 27. Qxg7+ {[%clk 0:00:16]}  Kxg7 {[%clk 0:00:04]} 28. Rxe6 {[%clk 0:00:17]}  Rd7 {[%clk 0:00:04]} 29. Nd4 {[%clk 0:00:15]}  Rbd8 {[%clk 0:00:03]} 30. Ne4 {[%clk 0:00:15]}  f5 {[%clk 0:00:01]} 31. Ng3 {[%clk 0:00:12]}  Kf7 {[%clk 0:00:02]} 32. Re2 {[%clk 0:00:11]}  Rxd4 {[%clk 0:00:02]} 33. cxd4 {[%clk 0:00:11]}  Rxd4 {[%clk 0:00:03]} 34. Rf2 {[%clk 0:00:07]}  Bc6 {[%clk 0:00:03]} 35. b3 {[%clk 0:00:05]}  Rd1+ {[%clk 0:00:03]} 36. Kh2 {[%clk 0:00:05]}  Rc1 {[%clk 0:00:04]} 37. Nf1 {[%clk 0:00:05]}  Rc3 {[%clk 0:00:04]} 38. Nd2 {[%clk 0:00:03]}  Rc2 {[%clk 0:00:04]} 39. a4 {[%clk 0:00:02]}  Rb2 {[%clk 0:00:03]} 40. Kg3 {[%clk 0:00:03]}  Rc2 {[%clk 0:00:03]} 41. Nc4 {[%clk 0:00:03]}  Rxf2 {[%clk 0:00:03]} 42. Kxf2 {[%clk 0:00:03]}  Ke6 {[%clk 0:00:03]} 43. Ne5 {[%clk 0:00:03]}  Bd5 {[%clk 0:00:03]} 44. b4 {[%clk 0:00:04]}  a5 {[%clk 0:00:03]} 45. bxa5 {[%clk 0:00:03]}  bxa5 {[%clk 0:00:03]} 46. g3 {[%clk 0:00:03]}  Bb3 {[%clk 0:00:03]} 47. Nc6 {[%clk 0:00:03]}  Bd5 {[%clk 0:00:02]} 48. Nxa5 {[%clk 0:00:03]}  Kd6 {[%clk 0:00:02]} 49. Ke3 {[%clk 0:00:03]}  Kc5 {[%clk 0:00:02]} 50. h4 {[%clk 0:00:03]}  h5 {[%clk 0:00:01]} 51. Kd3 {[%clk 0:00:04]} 1-0


[Site "https://www.chess.com"]

[Event "Titled Tuesday Blitz December 06 Early 2022"]
[White "Acor, Corey"]
[Black "Iskusnyh, Sergei"]
[WhiteFideId "2024861"]
[BlackFideId "4120027"]
[WhiteElo "2765"]
[BlackElo "2599"]
[Result "0-1"]
[Round "07"]
[TimeControl "180+1"]
[Date "2022.12.07"]
[WhiteClock "0:01:24"]
[BlackClock "0:01:53"]

1. e4 {[%clk 0:02:56]}  e6 {[%clk 0:02:59]} 2. d3 {[%clk 0:02:56]}  c5 {[%clk 0:02:51]} 3. Nc3 {[%clk 0:02:55]}  Nc6 {[%clk 0:02:49]} 4. g3 {[%clk 0:02:55]}  g6 {[%clk 0:02:49]} 5. Bg2 {[%clk 0:02:55]}  Bg7 {[%clk 0:02:49]} 6. Be3 {[%clk 0:02:56]}  d6 {[%clk 0:02:45]} 7. Qd2 {[%clk 0:02:45]}  Rb8 {[%clk 0:02:41]} 8. Nf3 {[%clk 0:02:36]}  Nd4 {[%clk 0:02:34]} 9. Bxd4 {[%clk 0:02:29]}  cxd4 {[%clk 0:02:33]} 10. Nb5 {[%clk 0:02:30]}  Qb6 {[%clk 0:02:30]} 11. Qb4 {[%clk 0:02:28]}  Kd7 {[%clk 0:02:01]} 12. Qa4 {[%clk 0:02:24]}  Ke7 {[%clk 0:01:58]} 13. Qxa7 {[%clk 0:02:16]}  Qxa7 {[%clk 0:01:54]} 14. Nxa7 {[%clk 0:02:17]}  Bd7 {[%clk 0:01:55]} 15. a4 {[%clk 0:01:24]}  Ra8 {[%clk 0:01:53]} 0-1


[Site "https://www.chess.com"]

[Event "Titled Tuesday Blitz December 06 Early 2022"]
[White "Aldokhin, Ivan"]
[Black "Devaev, Alexander"]
[WhiteFideId "24115720"]
[BlackFideId "4169395"]
[WhiteElo "2623"]
[BlackElo "2452"]
[Result "1-0"]
[Round "07"]
[TimeControl "180+1"]
[Date "2022.12.07"]
[WhiteClock "0:00:04"]
[BlackClock "0:00:16"]

1. e4 {[%clk 0:02:56]}  c6 {[%clk 0:02:59]} 2. Nc3 {[%clk 0:02:55]}  d5 {[%clk 0:03:00]} 3. d4 {[%clk 0:02:55]}  dxe4 {[%clk 0:03:00]} 4. Nxe4 {[%clk 0:02:56]}  Bf5 {[%clk 0:03:01]} 5. Ng3 {[%clk 0:02:56]}  Bg6 {[%clk 0:03:01]} 6. h4 {[%clk 0:02:57]}  h6 {[%clk 0:03:01]} 7. Nh3 {[%clk 0:02:58]}  e6 {[%clk 0:03:01]} 8. Nf4 {[%clk 0:02:58]}  Bh7 {[%clk 0:03:01]} 9. Be3 {[%clk 0:02:58]}  Nf6 {[%clk 0:02:59]} 10. Bd3 {[%clk 0:02:59]}  Bxd3 {[%clk 0:02:59]} 11. Qxd3 {[%clk 0:02:54]}  Nbd7 {[%clk 0:02:58]} 12. O-O-O {[%clk 0:02:54]}  Bd6 {[%clk 0:02:58]} 13. Ngh5 {[%clk 0:02:43]}  Bxf4 {[%clk 0:02:50]} 14. Nxg7+ {[%clk 0:02:36]}  Kf8 {[%clk 0:02:43]} 15. Nxe6+ {[%clk 0:02:12]}  fxe6 {[%clk 0:02:43]} 16. Bxf4 {[%clk 0:02:12]}  Kf7 {[%clk 0:02:13]} 17. Rde1 {[%clk 0:02:02]}  Qa5 {[%clk 0:02:13]} 18. Kb1 {[%clk 0:01:29]}  Qf5 {[%clk 0:02:10]} 19. Qd2 {[%clk 0:01:16]}  Rag8 {[%clk 0:01:20]} 20. f3 {[%clk 0:01:16]}  h5 {[%clk 0:01:01]} 21. Bg5 {[%clk 0:01:11]}  Nh7 {[%clk 0:00:59]} 22. Re4 {[%clk 0:01:05]}  Ndf6 {[%clk 0:00:47]} 23. Re5 {[%clk 0:00:50]}  Qg6 {[%clk 0:00:46]} 24. Qb4 {[%clk 0:00:46]}  Rb8 {[%clk 0:00:42]} 25. Qd6 {[%clk 0:00:35]}  Rhe8 {[%clk 0:00:42]} 26. Qc7+ {[%clk 0:00:25]}  Kg8 {[%clk 0:00:37]} 27. Rhe1 {[%clk 0:00:24]}  Qf7 {[%clk 0:00:35]} 28. Qa5 {[%clk 0:00:19]}  b6 {[%clk 0:00:35]} 29. Qc3 {[%clk 0:00:19]}  Rbc8 {[%clk 0:00:34]} 30. Qe3 {[%clk 0:00:19]}  Nd5 {[%clk 0:00:29]} 31. Qe4 {[%clk 0:00:17]}  c5 {[%clk 0:00:24]} 32. c3 {[%clk 0:00:06]}  cxd4 {[%clk 0:00:24]} 33. Qxd4 {[%clk 0:00:06]}  b5 {[%clk 0:00:17]} 34. Bc1 {[%clk 0:00:05]}  Nhf6 {[%clk 0:00:16]} 35. Rg5+ {[%clk 0:00:04]}  Kf8 {[%clk 0:00:16]} 36. Qe5 {[%clk 0:00:03]}  b4 {[%clk 0:00:15]} 37. Qd6+ {[%clk 0:00:03]}  Qe7 {[%clk 0:00:15]} 38. Qxe7+ {[%clk 0:00:03]}  Kxe7 {[%clk 0:00:13]} 39. cxb4 {[%clk 0:00:04]}  Kf7 {[%clk 0:00:13]} 40. a3 {[%clk 0:00:03]}  Rb8 {[%clk 0:00:12]} 41. Re2 {[%clk 0:00:03]}  a5 {[%clk 0:00:12]} 42. Rc2 {[%clk 0:00:02]}  axb4 {[%clk 0:00:12]} 43. axb4 {[%clk 0:00:02]}  Rxb4 {[%clk 0:00:12]} 44. Rc6 {[%clk 0:00:02]}  Re7 {[%clk 0:00:10]} 45. Re5 {[%clk 0:00:02]}  Reb7 {[%clk 0:00:11]} 46. Rc2 {[%clk 0:00:02]}  R4b6 {[%clk 0:00:11]} 47. Ree2 {[%clk 0:00:03]}  Nb4 {[%clk 0:00:11]} 48. Rc4 {[%clk 0:00:02]}  Nfd5 {[%clk 0:00:11]} 49. Re1 {[%clk 0:00:02]}  Nd3 {[%clk 0:00:12]} 50. Re2 {[%clk 0:00:02]}  N3f4 {[%clk 0:00:10]} 51. Bxf4 {[%clk 0:00:01]}  Ra6 {[%clk 0:00:07]} 52. Be5 {[%clk 0:00:02]}  Rba7 {[%clk 0:00:07]} 53. Kc2 {[%clk 0:00:02]}  Ra1 {[%clk 0:00:07]} 54. Rc5 {[%clk 0:00:03]}  Rb7 {[%clk 0:00:07]} 55. Rd2 {[%clk 0:00:03]}  Ra4 {[%clk 0:00:07]} 56. Rd4 {[%clk 0:00:03]}  Ra2 {[%clk 0:00:06]} 57. Rdc4 {[%clk 0:00:03]}  Nb4+ {[%clk 0:00:07]} 58. Kd1 {[%clk 0:00:02]}  Na6 {[%clk 0:00:07]} 59. Rc6 {[%clk 0:00:02]}  Ra1+ {[%clk 0:00:08]} 60. Ke2 {[%clk 0:00:02]}  Ra2 {[%clk 0:00:08]} 61. Rc7+ {[%clk 0:00:01]}  Nxc7 {[%clk 0:00:08]} 62. Rxc7+ {[%clk 0:00:02]}  Rxc7 {[%clk 0:00:08]} 63. Bxc7 {[%clk 0:00:03]}  Rxb2+ {[%clk 0:00:09]} 64. Kf1 {[%clk 0:00:04]}  Rb5 {[%clk 0:00:10]} 65. Bg3 {[%clk 0:00:03]}  Rb3 {[%clk 0:00:10]} 66. Bf2 {[%clk 0:00:03]}  Kg6 {[%clk 0:00:11]} 67. Kg1 {[%clk 0:00:04]}  Kf5 {[%clk 0:00:11]} 68. Kh2 {[%clk 0:00:05]}  Rb2 {[%clk 0:00:12]} 69. Kg3 {[%clk 0:00:05]}  Re2 {[%clk 0:00:12]} 70. Bb6 {[%clk 0:00:05]}  e5 {[%clk 0:00:12]} 71. Bc7 {[%clk 0:00:06]}  Rc2 {[%clk 0:00:13]} 72. Bb8 {[%clk 0:00:06]}  Rb2 {[%clk 0:00:13]} 73. Bc7 {[%clk 0:00:06]}  Rb3 {[%clk 0:00:13]} 74. Kh2 {[%clk 0:00:04]}  Rb2 {[%clk 0:00:14]} 75. Bd8 {[%clk 0:00:05]}  Rc2 {[%clk 0:00:14]} 76. Bg5 {[%clk 0:00:05]}  Rc4 {[%clk 0:00:15]} 77. Bd8 {[%clk 0:00:05]}  Rd4 {[%clk 0:00:14]} 78. Bg5 {[%clk 0:00:05]}  Rd3 {[%clk 0:00:14]} 79. Be7 {[%clk 0:00:05]}  Rd7 {[%clk 0:00:14]} 80. Bg5 {[%clk 0:00:05]}  Rc7 {[%clk 0:00:14]} 81. Bh6 {[%clk 0:00:06]}  Rc6 {[%clk 0:00:13]} 82. Bg5 {[%clk 0:00:06]}  Rc4 {[%clk 0:00:13]} 83. Kh3 {[%clk 0:00:06]}  Ra4 {[%clk 0:00:13]} 84. Bh6 {[%clk 0:00:06]}  Ra3 {[%clk 0:00:13]} 85. Kh2 {[%clk 0:00:05]}  Ra2 {[%clk 0:00:13]} 86. Bf8 {[%clk 0:00:05]}  Ra4 {[%clk 0:00:14]} 87. Kh3 {[%clk 0:00:05]}  Kg6 {[%clk 0:00:13]} 88. Bd6 {[%clk 0:00:04]}  Kf5 {[%clk 0:00:14]} 89. Bf8 {[%clk 0:00:04]}  Rd4 {[%clk 0:00:14]} 90. Bg7 {[%clk 0:00:03]}  Rd1 {[%clk 0:00:14]} 91. Kh2 {[%clk 0:00:04]}  Rd2 {[%clk 0:00:14]} 92. Bh6 {[%clk 0:00:04]}  Rd7 {[%clk 0:00:15]} 93. Kh3 {[%clk 0:00:04]}  Rd6 {[%clk 0:00:14]} 94. Bg5 {[%clk 0:00:04]}  Rd4 {[%clk 0:00:15]} 95. Kh2 {[%clk 0:00:04]}  Rd3 {[%clk 0:00:15]} 96. Kg1 {[%clk 0:00:04]}  Ra3 {[%clk 0:00:14]} 97. Kf2 {[%clk 0:00:04]}  Ra2+ {[%clk 0:00:14]} 98. Kg3 {[%clk 0:00:04]}  Ra3 {[%clk 0:00:14]} 99. Kh2 {[%clk 0:00:05]}  Ke6 {[%clk 0:00:14]} 100. Kg3 {[%clk 0:00:04]}  Kd5 {[%clk 0:00:14]} 101. Kf2 {[%clk 0:00:04]}  Kc4 {[%clk 0:00:14]} 102. g4 {[%clk 0:00:04]}  hxg4 {[%clk 0:00:13]} 103. fxg4 {[%clk 0:00:05]}  Kd4 {[%clk 0:00:12]} 104. h5 {[%clk 0:00:05]}  Ke4 {[%clk 0:00:13]} 105. h6 {[%clk 0:00:05]}  Rh3 {[%clk 0:00:13]} 106. Kg2 {[%clk 0:00:05]}  Ra3 {[%clk 0:00:13]} 107. h7 {[%clk 0:00:03]}  Ra2+ {[%clk 0:00:13]} 108. Kg3 {[%clk 0:00:02]}  Ra3+ {[%clk 0:00:14]} 109. Kh4 {[%clk 0:00:02]}  Ra1 {[%clk 0:00:14]} 110. Kh5 {[%clk 0:00:02]}  Rh1+ {[%clk 0:00:15]} 111. Bh4 {[%clk 0:00:03]}  Kf3 {[%clk 0:00:14]} 112. h8=Q {[%clk 0:00:03]}  e4 {[%clk 0:00:15]} 113. Qf6+ {[%clk 0:00:03]}  Ke2 {[%clk 0:00:16]} 114. Qf2+ {[%clk 0:00:04]}  Kd3 {[%clk 0:00:15]} 115. Qg2 {[%clk 0:00:04]}  Rd1 {[%clk 0:00:15]} 116. Bg5 {[%clk 0:00:03]}  e3 {[%clk 0:00:15]} 117. Qd5+ {[%clk 0:00:03]}  Ke2 {[%clk 0:00:15]} 118. Qxd1+ {[%clk 0:00:04]}  Kxd1 {[%clk 0:00:16]} 119. Bxe3 {[%clk 0:00:04]} 1-0


[Site "https://www.chess.com"]

[Event "Titled Tuesday Blitz December 06 Early 2022"]
[White "Averjanov, Alexey"]
[Black "Mitrovic, Darko R"]
[WhiteFideId "14109867"]
[BlackFideId "927023"]
[WhiteElo "2694"]
[BlackElo "2150"]
[Result "1-0"]
[Round "07"]
[TimeControl "180+1"]
[Date "2022.12.07"]
[WhiteClock "0:02:16"]
[BlackClock "0:00:02"]

1. d4 {[%clk 0:02:56]}  Nf6 {[%clk 0:02:50]} 2. c4 {[%clk 0:02:56]}  e6 {[%clk 0:02:50]} 3. Nf3 {[%clk 0:02:54]}  Bb4+ {[%clk 0:02:49]} 4. Nbd2 {[%clk 0:02:53]}  O-O {[%clk 0:02:47]} 5. g3 {[%clk 0:02:53]}  d6 {[%clk 0:02:46]} 6. Bg2 {[%clk 0:02:52]}  Nc6 {[%clk 0:02:44]} 7. O-O {[%clk 0:02:52]}  Bxd2 {[%clk 0:02:44]} 8. Qxd2 {[%clk 0:02:53]}  e5 {[%clk 0:02:39]} 9. b3 {[%clk 0:02:50]}  h6 {[%clk 0:02:26]} 10. Bb2 {[%clk 0:02:49]}  Qe7 {[%clk 0:02:14]} 11. dxe5 {[%clk 0:02:45]}  dxe5 {[%clk 0:01:57]} 12. Rad1 {[%clk 0:02:44]}  Bf5 {[%clk 0:01:50]} 13. Qc1 {[%clk 0:02:37]}  Rfd8 {[%clk 0:01:44]} 14. Rxd8+ {[%clk 0:02:35]}  Rxd8 {[%clk 0:01:43]} 15. Rd1 {[%clk 0:02:36]}  Rxd1+ {[%clk 0:01:41]} 16. Qxd1 {[%clk 0:02:35]}  Nd7 {[%clk 0:01:25]} 17. Nd2 {[%clk 0:02:27]}  f6 {[%clk 0:01:16]} 18. Ne4 {[%clk 0:02:25]}  Be6 {[%clk 0:01:05]} 19. Nc3 {[%clk 0:02:21]}  a6 {[%clk 0:00:31]} 20. Nd5 {[%clk 0:02:21]}  Qd6 {[%clk 0:00:27]} 21. Qc1 {[%clk 0:02:16]}  b6 {[%clk 0:00:13]} 22. Ba3 {[%clk 0:02:15]}  Nc5 {[%clk 0:00:12]} 23. b4 {[%clk 0:02:15]}  Nd7 {[%clk 0:00:02]} 24. b5 {[%clk 0:02:15]}  Nc5 {[%clk 0:00:02]} 25. bxc6 {[%clk 0:02:16]} 1-0


[Site "https://www.chess.com"]

[Event "Titled Tuesday Blitz December 06 Early 2022"]
[White "Bambino Filho, Antonio Carlos"]
[Black "Aloma Vidal, Robert"]
[WhiteFideId "2113163"]
[BlackFideId "2260409"]
[WhiteElo "2391"]
[BlackElo "2639"]
[Result "0-1"]
[Round "07"]
[TimeControl "180+1"]
[Date "2022.12.07"]
[WhiteClock "0:00:22"]
[BlackClock "0:00:15"]

1. e4 {[%clk 0:02:55]}  e5 {[%clk 0:03:00]} 2. Nf3 {[%clk 0:02:54]}  Nf6 {[%clk 0:03:01]} 3. Nxe5 {[%clk 0:02:50]}  d6 {[%clk 0:03:01]} 4. Nf3 {[%clk 0:02:51]}  Nxe4 {[%clk 0:03:02]} 5. Nc3 {[%clk 0:02:52]}  Nf6 {[%clk 0:03:01]} 6. d4 {[%clk 0:02:51]}  g6 {[%clk 0:03:02]} 7. Bc4 {[%clk 0:02:49]}  Bg7 {[%clk 0:03:01]} 8. h3 {[%clk 0:02:50]}  O-O {[%clk 0:02:59]} 9. O-O {[%clk 0:02:50]}  a6 {[%clk 0:02:58]} 10. a4 {[%clk 0:02:49]}  Nc6 {[%clk 0:02:56]} 11. a5 {[%clk 0:02:47]}  d5 {[%clk 0:02:48]} 12. Bb3 {[%clk 0:02:41]}  h6 {[%clk 0:02:42]} 13. Bf4 {[%clk 0:02:39]}  Be6 {[%clk 0:02:40]} 14. Re1 {[%clk 0:02:38]}  Ne7 {[%clk 0:02:26]} 15. Na4 {[%clk 0:02:35]}  Nd7 {[%clk 0:02:13]} 16. Qd2 {[%clk 0:02:34]}  Kh7 {[%clk 0:02:13]} 17. Ne5 {[%clk 0:02:34]}  Nxe5 {[%clk 0:01:54]} 18. Bxe5 {[%clk 0:02:35]}  Bxe5 {[%clk 0:01:41]} 19. Rxe5 {[%clk 0:02:36]}  Nc6 {[%clk 0:01:37]} 20. Re2 {[%clk 0:02:27]}  Qf6 {[%clk 0:01:34]} 21. c3 {[%clk 0:02:25]}  Nxa5 {[%clk 0:01:29]} 22. Ba2 {[%clk 0:02:14]}  b6 {[%clk 0:01:27]} 23. Rae1 {[%clk 0:02:14]}  Rad8 {[%clk 0:01:23]} 24. b4 {[%clk 0:02:13]}  Nc4 {[%clk 0:01:21]} 25. Bxc4 {[%clk 0:02:05]}  dxc4 {[%clk 0:01:21]} 26. Re5 {[%clk 0:01:53]}  Rd5 {[%clk 0:01:18]} 27. Qe3 {[%clk 0:01:50]}  Rxe5 {[%clk 0:01:18]} 28. dxe5 {[%clk 0:01:50]}  Qf5 {[%clk 0:01:16]} 29. Re2 {[%clk 0:01:37]}  Rd8 {[%clk 0:01:14]} 30. Nb2 {[%clk 0:01:36]}  Qb1+ {[%clk 0:00:59]} 31. Kh2 {[%clk 0:01:36]}  Rd7 {[%clk 0:00:55]} 32. f4 {[%clk 0:01:35]}  h5 {[%clk 0:00:53]} 33. g4 {[%clk 0:01:12]}  hxg4 {[%clk 0:00:51]} 34. Rg2 {[%clk 0:01:12]}  Qf1 {[%clk 0:00:43]} 35. hxg4 {[%clk 0:01:08]}  Bd5 {[%clk 0:00:41]} 36. Rd2 {[%clk 0:00:56]}  Qh1+ {[%clk 0:00:39]} 37. Kg3 {[%clk 0:00:57]}  Kg8 {[%clk 0:00:37]} 38. f5 {[%clk 0:00:51]}  b5 {[%clk 0:00:31]} 39. e6 {[%clk 0:00:48]}  fxe6 {[%clk 0:00:29]} 40. fxe6 {[%clk 0:00:48]}  Re7 {[%clk 0:00:29]} 41. Rh2 {[%clk 0:00:41]}  Qe4 {[%clk 0:00:19]} 42. Qh6 {[%clk 0:00:36]}  Qe5+ {[%clk 0:00:20]} 43. Kf2 {[%clk 0:00:32]}  Qg7 {[%clk 0:00:18]} 44. Nd1 {[%clk 0:00:22]}  Qxh6 {[%clk 0:00:17]} 45. Rxh6 {[%clk 0:00:23]}  Kg7 {[%clk 0:00:18]} 46. Ne3 {[%clk 0:00:24]}  Kxh6 {[%clk 0:00:16]} 47. Nxd5 {[%clk 0:00:24]}  Rxe6 {[%clk 0:00:16]} 48. Nxc7 {[%clk 0:00:25]}  Rd6 {[%clk 0:00:16]} 49. Ne8 {[%clk 0:00:22]}  Rd3 {[%clk 0:00:16]} 50. g5+ {[%clk 0:00:22]}  Kxg5 {[%clk 0:00:15]} 0-1


[Site "https://www.chess.com"]